{"text_format":"3","workbook":"xlsx","n_sheets":6,"sheets":["Rustenburg 3.1.1","Mafikeng 3.1.2","Bloemfontein 3.1.3","Phuthaditjhaba 3.1.4","Kimberley3.1.5","Grand Total"],"read":"whole","date_system":"1900"}

{"sheet":"Rustenburg 3.1.1","index":0,"n_rows":98,"n_cols":11,"rows_kept":98,"merged":[[0,0,0,6],[1,7,1,10],[2,0,2,10],[3,4,3,9],[5,0,5,1],[6,0,6,1],[6,2,6,10],[7,0,7,1],[8,0,8,1],[8,2,8,10],[9,0,9,1],[10,0,10,1],[10,2,10,10],[11,0,11,1],[12,0,12,1],[12,2,12,10],[13,0,13,1],[15,0,15,10],[16,0,16,10],[32,0,32,2],[33,0,33,2],[33,3,33,4],[34,0,34,2],[35,0,35,2],[35,3,35,4],[36,0,36,2],[37,0,37,2],[37,3,37,4],[38,0,38,2],[39,0,39,2],[39,3,39,4],[40,0,40,2],[43,0,43,5],[74,0,74,2],[75,0,75,2],[75,3,75,4],[76,0,76,2],[77,0,77,2],[77,3,77,4],[78,0,78,2],[79,0,79,2],[79,3,79,4],[80,0,80,2],[81,0,81,2],[81,3,81,4],[82,0,82,2],[83,0,83,3],[84,0,84,5],[85,0,85,5],[87,0,87,3],[88,0,88,3],[89,0,89,3],[90,0,90,3],[92,0,93,0],[92,2,93,2]]}
["Incomplete pricing schedules (SBD3.1.1-SBD 3.1.3) may lead to disqualification. Only the attached pricing schedule SBD 3.1.1- SBD 3.1.3 will be accepted for evaluation purposes."]
["PROVISION OF CLEANING, HYGEINE AND PEST CONTROL SERVICES FOR GPAA ",{"$nulls":4}," NAME OF BIDDER:"]
["CLEANING SERVICES  PRICE STRUCTURE: RUSTENBURG OFFICE"]
["CLEANING PERSONNEL  PRICE STRUCTURE","QTY","RATE PER MONTH- CLEANER","Sub-Total","N/A",{"$nulls":5},"ANNUAL TOTAL"]
["LABOUR Cost + profit",2,0,{"$f":"C5*B5","v":0},null,0,{"$f":"F5*E5","v":0},null,0,{"$f":"I5*H5","v":0},{"$f":"D5*12","v":0}]
["Total Year 1",{"$nulls":9},{"$f":"K5","v":0}]
["annual price escalation in % for Y2",null,{"v":0,"d":"0%"}]
["Total Year 2",{"$nulls":9},{"$f":"K6*C7+K6","v":0}]
["annual price escalation in % for Y3",null,{"v":0,"d":"0%"}]
["Total Year 3",{"$nulls":9},{"$f":"K8*C9+K8","v":0}]
["annual price escalation in % for Y4",null,{"v":0,"d":"0%"}]
["Total Year 4",{"$nulls":9},{"$f":"K10*C11+K10","v":0}]
["annual price escalation in % for Y5",null,{"v":0,"d":"0%"}]
["Total Year 5",{"$nulls":9},{"$f":"K12*C13+K12","v":0}]
["SUB-TOTAL COST OF LABOUR  (3.1.1-A)",{"$nulls":9},{"$f":"K6+K8+K10+K12+K14","v":0}]
[]
["HYGIENE SERVICES & CONSUMABLES"]
["PRODUCT/SERVICE","QUANTITY","FREQUENCY","  COST per quantity","ANNUAL COST"]
["Deep Cleaning  of ablution facilities  including urinals",0,"Monthly",null,{"$f":"B19*D19*12","v":0}]
["Automatic air freshners and refills",0,"Monthly rental and  Re-fill as required",null,{"$f":"B20*D20*12","v":0}]
["Paper towel dispensers",1,"Monthly rental",0,0]
["Paper towels (pack of 6)",1,"Monthly ",0,0]
["Contingency hand towels (pack of 6)",0,"When required",0,{"$f":"B23*D23","v":0}]
["Waste Bins and bags",0,"Monthly rental and Re-fill as required",0,0]
["Foam Soap dispenser and refills",0,"Monthly rental and Re-fill as required",0,0]
["Seat Sprays and refills",0,"Monthly rental and  Re-fill as required",0,0]
["Toilet Roll holders TR3",0,"Monthly rental",0,0]
["Toilet Rolls (bale of 48)",0,"Monthly supply",0,0]
["Contingency toilet paper (bale of 48)",0,"When required",0,{"$f":"B29*D29","v":0}]
["She Bins",0," Fortnightly service",0,{"$f":"B30*D30*24","v":0}]
["Capert Cleaning (estimate  188m2)",188,"6 monthly  (twice a year)",0,{"$f":"B31*D31","v":0}]
["Upholstery cleaning (estimate 50 chairs)",50,"Annually",0,{"$f":"B32*D32","v":0}]
["Hygiene Services and consumables  Yr 1 (with+ profit)",{"$nulls":3},{"$f":"SUM(E19:E32)","v":0}]
["Annual price Escalation in % for Y2",null,null,{"v":0,"d":"0%"}]
["Hygiene Services and consumables  Yr 2 (with escalation + profit)",{"$nulls":3},{"$f":"E33*D34+E33","v":0}]
["Annual price Escalation in % for Y3",null,null,{"v":0,"d":"0%"}]
["Hygiene Services and consumables  Yr 3 (with escalation+ profit)",{"$nulls":3},{"$f":"E35*D36+E35","v":0}]
["Annual price Escalation in % for Y4",null,null,{"v":0,"d":"0%"}]
["Hygiene Services and consumables Yr 4 (with escalation + profit)",{"$nulls":3},{"$f":"E37*D38+E37","v":0}]
["Annual price Escalation in % for Y5",null,null,{"v":0,"d":"0%"}]
["Hygiene Services and consumables  Yr 5 (with escalation + profit)",{"$nulls":3},{"$f":"E39*D40+E39","v":0}]
["SUB-TOTAL COST OF HYGIENE AND CONSUMABLES (3.1.1-B)",{"$nulls":3},{"$f":"E33+E35+E37+E39+E41","v":0}]
[]
["CLEANING  MATERIAL + CONSUMABLES"]
["DESCRIPTION","QUANTITY","FREQUENCY","Unit cost/ per quantity","TOTAL"]
["Double buckets- offices (for the duration of the contract)",1,"Once off",0,{"$f":"D46*B46","v":0}]
["Mops - colour coded  kitchens+ Offices - per quarter",2,"Quarterly",0,{"$f":"D47*B47*4","v":0}]
["Mops - colour coded (Blue) toilets - per quarter",0,"Quarterly",0,0]
["Household Brooms + Dustpans",1,"annually",0,{"$f":"D49*B49","v":0}]
["Low noise  vacuum cleaners",1,"Once off",0,{"$f":"D50*B50","v":0}]
["Short extension cord",1,"Once off",0,{"$f":"D51*B51","v":0}]
["Ladders  1 x short",1,"Once off",0,0]
["Wet floor caution signs",4,"Once off",0,0]
["Dishwashing liquid  25 litres ",1,"Quarterly",0,{"$f":"D54*B54*4","v":0}]
["Solu seal floor polish 5 litres  ",1,"Six monthly",0,{"$f":"D55*B55*2","v":0}]
["Pine Gel - 25 litres ",0,"Six monthly",0,{"$f":"D56*B56*2","v":0}]
["Bleach 25 litres",1,"Quarterly",0,{"$f":"D57*B57*4","v":0}]
["Surface sanitiser with 70-90%alcohol content 25l",1,"Quarterly",0,{"$f":"D58*B58*4","v":0}]
["Pledge Polish -wood 400ml-(Pack of 6)",1,"Quarterly",0,{"$f":"D59*B59*4","v":0}]
["Long  and short feather duster",2,"6 monthly",0,{"$f":"D60*B60*2","v":0}]
["Pledge Oil- 250ml (pack of 6)",1,"6 monthly",0,{"$f":"D61*B61*2","v":0}]
["Toilet Bowl Cleaner 25 litres",0,"Quarterly",0,{"$f":"D62*B62*4","v":0}]
["Heavy duty stripper 25 litres, stripping floors to be done quarterly",1,"6 monthly",0,{"$f":"D63*B63*2","v":0}]
["Multi purpose Cleaner- 25 litres",1,"Quarterly",0,{"$f":"D64*B64*4","v":0}]
["Cleaning Latex  gloves (box of 20)",1,"Monthly",0,{"$f":"D65*B65*12","v":0}]
["Household gloves (box of 20)",1,"Monthly",0,{"$f":"D66*B66*12","v":0}]
["Refuse bags 35 micron (20 per pack)",1,"Monthly",0,0]
["Glass and window cleaning material 10 litres",1,"Quarterly",0,{"$f":"D68*B68*4","v":0}]
["Dust Masks SABS approved ( box of 10)",1,"Monthly",0,0]
["Microfibre Dust Cloths (pack of 10)",1,"Quarterly",0,{"$f":"D70*B70*4","v":0}]
["Kitchen swabs (pack of 10)",1,"Six monthly",0,{"$f":"D71*B71*2","v":0}]
["Dish towels (Pack of 10)",1,"Six monthly",0,{"$f":"D72*B72*2","v":0}]
["Spray bottles (750ml for dishwashing liquid)",1,"Six monthly",0,{"$f":"D73*B73*2","v":0}]
["Window squdgee short",1,"Once off",0,{"$f":"D74*B74","v":0}]
["Cleaning Materials Yr 1 + profit",null,null,0,{"$f":"SUM(E46:E74)","v":0}]
["Annual price Escalation in % for Y2",null,null,{"v":0,"d":"0%"}]
["  Cleaning Materials Yr 2 (with escalation + profit)",{"$nulls":3},{"$f":"E75*D76+E75","v":0}]
["Annual price Escalation in % for Y3",null,null,{"v":0,"d":"0%"}]
["Cleaning Materials Yr 3 (with escalation + profit)",{"$nulls":3},{"$f":"E77*D78+E77","v":0}]
["Annual price Escalation in % for Y4",null,null,{"v":0,"d":"0%"}]
["Cleaning Materials Yr 4 (with escalation + profit)",{"$nulls":3},{"$f":"E79*D80+E79","v":0}]
["Annual price Escalation in % for Y5",null,null,{"v":0,"d":"0%"}]
["Cleaning Materials Yr 5 (with escalation + profit)",{"$nulls":3},{"$f":"E81*D82+E81","v":0}]
["SUB-TOTAL COST OF CLEANING MATERIALS  (3.1.1-C)",{"$nulls":3},{"$f":"E75+E77+E79+E81+E83","v":0}]
[]
["Add Sub totals 3.1.1-A- 3.1.1C"]
["Table",{"$nulls":3},"Total"]
["LABOUR                                                                                             3.1.1-A",{"$nulls":3},{"$f":"K15","v":0}]
["HYGIENCE SERVICE AND CONSUMABLE                                       3.1.1-B",{"$nulls":3},{"$f":"E42","v":0}]
["CLEANING MATERIAL AND CONSUMABLE                                     3.1.1 -C",{"$nulls":3},{"$f":"E84","v":0}]
["TOTAL 3.1.1",{"$nulls":3},{"$f":"SUM(E88:E90)","v":0}]
[]
[]
[]
["Signature",null,"Date"]
[]
[]
["Completion and submission of another form of pricing other than the template issued, incomplete completion of the pricing schedule or amendments made to the template will result in the bid being disqualified."]

{"sheet":"Mafikeng 3.1.2","index":1,"n_rows":100,"n_cols":11,"rows_kept":100,"merged":[[0,0,0,6],[1,7,1,10],[2,0,2,10],[3,4,3,9],[5,0,5,1],[6,0,6,1],[6,2,6,10],[7,0,7,1],[8,0,8,1],[8,2,8,10],[9,0,9,1],[10,0,10,1],[10,2,10,10],[11,0,11,1],[12,0,12,1],[12,2,12,10],[13,0,13,1],[15,0,15,10],[16,0,16,10],[33,0,33,2],[34,0,34,2],[34,3,34,4],[35,0,35,2],[36,0,36,2],[36,3,36,4],[37,0,37,2],[38,0,38,2],[38,3,38,4],[39,0,39,2],[40,0,40,2],[40,3,40,4],[41,0,41,2],[44,0,44,5],[76,0,76,2],[77,0,77,2],[77,3,77,4],[78,0,78,2],[79,0,79,2],[79,3,79,4],[80,0,80,2],[81,0,81,2],[81,3,81,4],[82,0,82,2],[83,0,83,2],[83,3,83,4],[84,0,84,2],[85,0,85,3],[86,0,86,5],[87,0,87,5],[88,5,93,5],[89,0,89,3],[90,0,90,3],[91,0,91,3],[92,0,92,3],[94,0,95,0],[94,2,95,2]]}
["Incomplete pricing schedules (SBD3.1.1-SBD 3.1.5) may lead to disqualification. Only the attached pricing schedule SBD3.1.1- SBD 3.1.5 will be accepted for evaluation purposes."]
["PROVISION OF CLEANING, HYGEINE AND PEST CONTROL SERVICES FOR GPAA ",{"$nulls":4}," NAME OF BIDDER:"]
["CLEANING SERVICES  PRICE STRUCTURE: MAFIKENG OFFICE"]
["CLEANING PERSONNEL  PRICE STRUCTURE","QTY","RATE PER MONTH- CLEANER","Sub-Total","N/A",{"$nulls":5},"ANNUAL TOTAL"]
["LABOUR Cost + profit",2,0,{"$f":"C5*B5","v":0},null,0,{"$f":"F5*E5","v":0},null,0,{"$f":"I5*H5","v":0},{"$f":"D5*12","v":0}]
["Total Year 1",{"$nulls":9},{"$f":"K5","v":0}]
["annual price escalation in % for Y2",null,{"v":0,"d":"0%"}]
["Total Year 2",{"$nulls":9},{"$f":"K6*C7+K6","v":0}]
["annual price escalation in % for Y3",null,{"v":0,"d":"0%"}]
["Total Year 3",{"$nulls":9},{"$f":"K8*C9+K8","v":0}]
["annual price escalation in % for Y4",null,{"v":0,"d":"0%"}]
["Total Year 4",{"$nulls":9},{"$f":"K10*C11+K10","v":0}]
["annual price escalation in % for Y5",null,{"v":0,"d":"0%"}]
["Total Year 5",{"$nulls":9},{"$f":"K12*C13+K12","v":0}]
["SUB-TOTAL COST OF LABOUR  (3.1.2-A)",{"$nulls":9},{"$f":"K6+K8+K10+K12+K14","v":0}]
[]
["HYGIENE SERVICES & CONSUMABLES"]
["PRODUCT/SERVICE","QUANTITY","FREQUENCY","  COST  per quantity","ANNUAL COST"]
["Deep Cleaning  of ablution facilities  including urinals",5,"Monthly",null,{"$f":"B19*D19*12","v":0}]
["Automatic air freshners and refills",3,"Monthly rental and  Re-fill as required",null,{"$f":"B20*D20*12","v":0}]
["Paper towel dispensers",3,"Monthly rental",0,{"$f":"B21*D21*12","v":0}]
["Paper towels (pack of 6)",3,"Monthly ",0,0]
["Contingency hand towels (pack of 6)",6,"When required",0]
["Waste Bins and bags",3,"Monthly rental and Re-fill as required",0,0]
["Foam Soap dispenser and refills",3,"Monthly rentaland Re-fill as required",0,0]
["Seat Sprays and refills",5,"Monthly rental and  Re-fill as required",0,0]
["Toilet Roll holders TR3",5,"Monthly rental",0,0]
["Toilet Rolls (bale of 48)",4,"Monthly supply",0,0]
["Contingency toilet paper (pack of48)",5,"When required",0,{"$f":"B29*D29","v":0}]
["She Bins provide and service",3," Fortnightly service",0,{"$f":"B30*D30*24","v":0}]
["Urinal mats",3,"Monthly change",0,{"$f":"B31*D31*12","v":0}]
["Capert Cleaning (estimate 300m2)",300,"6 monthly  (twice a year)",0,{"$f":"B32*D32*2","v":0}]
["Upholstery cleaning 40 chairs)",40,"Annually",0,{"$f":"B33*D33","v":0}]
["Hygiene Services and consumables  Yr 1 (with+ profit)",{"$nulls":3},{"$f":"SUM(E19:E33)","v":0}]
["Annual price Escalation in % for Y2",null,null,{"v":0,"d":"0%"}]
["Hygiene Services and consumables  Yr 2 (with escalation + profit)",{"$nulls":3},{"$f":"E34*D35+E34","v":0}]
["Annual price Escalation in % for Y3",null,null,{"v":0,"d":"0%"}]
["Hygiene Services and consumables  Yr 3 (with escalation+ profit)",{"$nulls":3},{"$f":"E36*D37+E36","v":0}]
["Annual price Escalation in % for Y4",null,null,{"v":0,"d":"0%"}]
["Hygiene Services and consumables Yr 4 (with escalation + profit)",{"$nulls":3},{"$f":"E38*D39+E38","v":0}]
["Annual price Escalation in % for Y5",null,null,{"v":0,"d":"0%"}]
["Hygiene Services and consumables  Yr 5 (with escalation + profit)",{"$nulls":3},{"$f":"E40*D41+E40","v":0}]
["SUB-TOTAL COST OF HYGIENE AND CONSUMABLES (3.1.2-B)",{"$nulls":3},{"$f":"E34+E36+E38+E40+E42","v":0}]
[]
["CLEANING  MATERIAL + CONSUMABLES"]
["DESCRIPTION","QUANTITY","FREQUENCY","Unit cost/ per quantity","TOTAL"]
["Double buckets- offices (for the duration of the contract)",1,"Once off",0,{"$f":"D47*B47","v":0}]
["Mops - colour coded (Green) kitchens - per quarter",2,"Quarterly",0,{"$f":"D48*B48*4","v":0}]
["Mops - colour coded (Blue) toilets - per quarter",2,"Quarterly",0,0]
["Household Brooms + Dustpans",2,"annually",0,{"$f":"D50*B50","v":0}]
["Low noise  vacuum cleaners",1,"Once off",0,{"$f":"D51*B51","v":0}]
["Short extension cord",2,"Once off",0,{"$f":"D52*B52","v":0}]
["Ladders  1 x short",1,"Once off",0,0]
["Wet floor caution signs",4,"Once off",0,0]
["Dishwashing liquid  25 litres ",1,"Quarterly",0,{"$f":"D55*B55*4","v":0}]
["Solu seal floor polish 5 litres  ",1,"Six monthly",0,{"$f":"D56*B56*2","v":0}]
["Pine Gel - 25 litres ",1,"Quarterly",0,{"$f":"D57*B57*4","v":0}]
["Bleach 25 litres",1,"Monthly",0,{"$f":"D58*B58*12","v":0}]
["Surface sanitiser with 70-90% alcohol content",2,"Quarterly",0,{"$f":"D59*B59*4","v":0}]
["Pledge Polish -wood 400ml-(Pack of 6)",2,"Quarterly",0,{"$f":"D60*B60*4","v":0}]
["Long  and short feather duster",2,"6 monthly",0,{"$f":"D61*B61*2","v":0}]
["Pledge Oil- 250ml (pack of 6)",2,"Quarterly",0,{"$f":"D62*B62*4","v":0}]
["Toilet brushes",5,"annually",null,{"$f":"B63*D63","v":0}]
["Toilet Bowl Cleaner 25 litres",1,"Quarterly",0,{"$f":"D64*B64*4","v":0}]
["Heavy duty stripper 25 litres, stripping floors to be quarterly",1,"six monthly",0,{"$f":"D65*B65*2","v":0}]
["Multi purpose Cleaner- 25 litres",1,"Quarterly",0,{"$f":"D66*B66*4","v":0}]
["Cleaning Latex  gloves (box of 20)",1,"Monthly",0,{"$f":"D67*B67*12","v":0}]
["Household gloves (box of 20)",1,"Monthly",0,{"$f":"D68*B68*12","v":0}]
["Refuse bags 35 micron (20 per pack)",1,"Monthly",0,0]
["Glass and window cleaning material 10 litres",1,"Quarterly",0,{"$f":"D70*B70*4","v":0}]
["Dust Masks SABS approved ( box of 10)",1,"Monthly",0,0]
["Microfibre Dust Cloths (pack of 10)",1,"Quarterly",0,{"$f":"D72*B72*4","v":0}]
["Kitchen swabs (pack of 10)",1,"6 monthly",0,{"$f":"D73*B73*2","v":0}]
["Dish towels (pack of 10)",1,"6 monthly",0,{"$f":"D74*B74*2","v":0}]
["Spray bottles (500ml)",1,"Six monthly",0,{"$f":"D75*B75*2","v":0}]
["Window squdgee short",1,"Once off",0,{"$f":"D76*B76","v":0}]
["Cleaning Materials Yr 1 + profit",{"$nulls":3},{"$f":"SUM(E47:E76)","v":0}]
["Annual price Escalation in % for Y2",null,null,{"v":0,"d":"0%"}]
["  Cleaning Materials Yr 2 (with escalation + profit)",{"$nulls":3},{"$f":"E77*D78+E77","v":0}]
["Annual price Escalation in % for Y3",null,null,{"v":0,"d":"0%"}]
["Cleaning Materials Yr 3 (with escalation + profit)",{"$nulls":3},{"$f":"E79*D80+E79","v":0}]
["Annual price Escalation in % for Y4",null,null,{"v":0,"d":"0%"}]
["Cleaning Materials Yr 4 (with escalation + profit)",{"$nulls":3},{"$f":"E81*D82+E81","v":0}]
["Annual price Escalation in % for Y5",null,null,{"v":0,"d":"0%"}]
["Cleaning Materials Yr 5 (with escalation + profit)",{"$nulls":3},{"$f":"E83*D84+E83","v":0}]
["SUB-TOTAL COST OF CLEANING MATERIALS  (3.1.2-C)",{"$nulls":3},{"$f":"E77+E79+E81+E83+E85","v":0}]
[]
["Add Sub totals 3.1.2A-3.1.2-C"]
["Table",{"$nulls":3},"Total"]
["LABOUR                                                                                             3.1.2-A",{"$nulls":3},{"$f":"K15","v":0}]
["HYGIENCE SERVICE AND CONSUMABLE                                         3.1.2-B",{"$nulls":3},{"$f":"E43","v":0}]
["CLEANING MATERIAL AND CONSUMABLE                                       3.1 .2-C",{"$nulls":3},{"$f":"E86","v":0}]
["TOTAL 3.1.2",{"$nulls":3},{"$f":"SUM(E90:E92)","v":0}]
[]
[]
[]
["Signature",null,"Date"]
[]
[]
[" Completion and submission of another form of pricing other than the template issued, incomplete completion of the pricing schedule or amendments made to the template will result in the bid being disqualified."]

{"sheet":"Bloemfontein 3.1.3","index":2,"n_rows":101,"n_cols":11,"rows_kept":101,"merged":[[0,0,0,6],[1,7,1,10],[2,0,2,10],[3,4,3,9],[5,0,5,1],[6,0,6,1],[6,2,6,10],[7,0,7,1],[8,0,8,1],[8,2,8,10],[9,0,9,1],[10,0,10,1],[10,2,10,10],[11,0,11,1],[12,0,12,1],[12,2,12,10],[13,0,13,1],[15,0,15,10],[16,0,16,10],[33,0,33,2],[34,0,34,2],[34,3,34,4],[35,0,35,2],[36,0,36,2],[36,3,36,4],[37,0,37,2],[38,0,38,2],[38,3,38,4],[39,0,39,2],[40,0,40,2],[40,3,40,4],[41,0,41,2],[44,0,44,5],[76,0,76,2],[77,0,77,2],[77,3,77,4],[78,0,78,2],[79,0,79,2],[79,3,79,4],[80,0,80,2],[81,0,81,2],[81,3,81,4],[82,0,82,2],[83,0,83,2],[83,3,83,4],[84,0,84,2],[85,0,85,3],[86,0,86,5],[87,0,87,5],[89,0,89,3],[90,0,90,3],[91,0,91,3],[92,0,92,3],[93,0,93,3],[95,0,96,0],[95,2,96,2]]}
["Incomplete pricing schedules (SBD3.1.1-SBD 3.1.5) may lead to disqualification. Only the attached pricing schedule SBD3.1.1- SBD 3.1.5 will be accepted for evaluation purposes."]
["PROVISION OF CLEANING, HYGEINE AND PEST CONTROL SERVICES FOR GPAA ",{"$nulls":4}," NAME OF BIDDER:"]
["CLEANING SERVICES  PRICE STRUCTURE: BLOEMFONTEIN OFFICE"]
["CLEANING PERSONNEL  PRICE STRUCTURE","QTY","RATE PER MONTH- CLEANER","Sub-Total","N/A",{"$nulls":5},"ANNUAL TOTAL"]
["LABOUR Cost + profit",1,null,{"$f":"C5*B5","v":0},null,0,{"$f":"F5*E5","v":0},null,0,{"$f":"I5*H5","v":0},{"$f":"D5*12","v":0}]
["Total Year 1",{"$nulls":9},{"$f":"K5","v":0}]
["annual price escalation in % for Y2",null,{"v":0,"d":"0%"}]
["Total Year 2",{"$nulls":9},{"$f":"K6*C7+K6","v":0}]
["annual price escalation in % for Y3",null,{"v":0,"d":"0%"}]
["Total Year 3",{"$nulls":9},{"$f":"K8*C9+K8","v":0}]
["annual price escalation in % for Y4",null,{"v":0,"d":"0%"}]
["Total Year 4",{"$nulls":9},{"$f":"K10*C11+K10","v":0}]
["annual price escalation in % for Y5",null,{"v":0,"d":"0%"}]
["Total Year 5",{"$nulls":9},{"$f":"K12*C13+K12","v":0}]
["SUB-TOTAL COST OF LABOUR  (3.1.3-A)",{"$nulls":9},{"$f":"K6+K8+K10+K12+K14","v":0}]
[]
["HYGIENE SERVICES & CONSUMABLES"]
["PRODUCT/SERVICE","QUANTITY","FREQUENCY","  COST  per quantity","ANNUAL COST"]
["Deep Cleaning  of ablution facilities  including urinals",5,"Monthly",0,{"$f":"B19*D19*12","v":0}]
["Automatic air freshners and refills",3,"Monthly rental and  Re-fill as required",0,{"$f":"B20*D20*12","v":0}]
["Paper towel dispensers",3,"Monthly rental",0,0]
["Paper towels (pack of 6)",4,"Monthly ",null,0]
["Contingency hand towels (pack of 6)",5,"When required",0,{"$f":"B23*D23","v":0}]
["Waste Bins and bags",3,"Monthly rental and Re-fill as required",0,0]
["Foam Soap dispenser and refills",3,"Monthly rental and Re-fill as required",0,0]
["Seat Sprays and refills",5,"Monthly rental and  Re-fill as required",0,0]
["Toilet Roll holders TR3",5,"Monthly rental",0,0]
["Toilet Rolls (bale of 48)",5,"Monthly supply",0,0]
["Contingency toilet paper (pack of 38)",3,"When required",0,{"$f":"B29*D29","v":0}]
["Urinal mats",3,"Monthly change",0,{"$f":"B30*D30*12","v":0}]
["She Bins provide and service",3," Fortnightly service",0,{"$f":"B31*D31*24","v":0}]
["Capert Cleaning (estimate 177m2)",177,"6 monthly  (twice a year)",0,{"$f":"B32*D32*2","v":0}]
["Upholstery cleaning (estimate 75 chairs)",75,"Annually",0,{"$f":"B33*D33","v":0}]
["Hygiene Services and consumables  Yr 1 (with+ profit)",{"$nulls":3},{"$f":"SUM(E19:E33)","v":0}]
["Annual price Escalation in % for Y2",null,null,{"v":0,"d":"0%"}]
["Hygiene Services and consumables  Yr 2 (with escalation + profit)",{"$nulls":3},{"$f":"E34*D35+E34","v":0}]
["Annual price Escalation in % for Y3",null,null,{"v":0,"d":"0%"}]
["Hygiene Services and consumables  Yr 3 (with escalation+ profit)",{"$nulls":3},{"$f":"E36*D37+E36","v":0}]
["Annual price Escalation in % for Y4",null,null,{"v":0,"d":"0%"}]
["Hygiene Services and consumables Yr 4 (with escalation + profit)",{"$nulls":3},{"$f":"E38*D39+E38","v":0}]
["Annual price Escalation in % for Y5",null,null,{"v":0,"d":"0%"}]
["Hygiene Services and consumables  Yr 5 (with escalation + profit)",{"$nulls":3},{"$f":"E40*D41+E40","v":0}]
["SUB-TOTAL COST OF HYGIENE AND CONSUMABLES (3.1.3-B)",{"$nulls":3},{"$f":"E34+E36+E38+E40+E42","v":0}]
[]
["CLEANING  MATERIAL + CONSUMABLES"]
["DESCRIPTION","QUANTITY","FREQUENCY","Unit cost/ per quantity","TOTAL"]
["Double buckets- offices (for the duration of the contract)",1,"Once off",0,{"$f":"D47*B47","v":0}]
["Mops - colour coded (Green) kitchens - per quarter",1,"Quarterly",null,{"$f":"D48*B48*4","v":0}]
["Mops - colour coded (Blue) toilets - per quarter",1,"Quarterly",0,0]
["Household Brooms + Dustpans",1,"annually",0,{"$f":"D50*B50","v":0}]
["Low noise  vacuum cleaners",1,"Once off",0,{"$f":"D51*B51","v":0}]
["Short extension cord",1,"Once off",0,{"$f":"D52*B52","v":0}]
["Ladders  1 x short",1,"Once off",0,0]
["Wet floor caution signs",4,"Once off",null,0]
["Dishwashing liquid  25 litres ",1,"Quarterly",0,{"$f":"D55*B55*4","v":0}]
["Solu seal floor polish 5 litres  ",1,"Six monthly",0,{"$f":"D56*B56*2","v":0}]
["Pine Gel - 25 litres ",1,"Six monthly",0,{"$f":"D57*B57*2","v":0}]
["Bleach 25 litres",1,"Quarterly",0,{"$f":"D58*B58*4","v":0}]
["Surface sanitiser with 70-90%alcohol content 25l",1,"Quarterly",0,{"$f":"D59*B59*4","v":0}]
["Pledge Polish -wood 400ml-(Pack of 6)",1,"Quarterly",0,{"$f":"D60*B60*4","v":0}]
["Long  and short feather duster",2,"6 monthly",0,{"$f":"D61*B61*2","v":0}]
["Pledge Oil- 250ml (pack of 6)",1,"Quarterly",0,{"$f":"D62*B62*4","v":0}]
["Toilet brushes",5,"annually",0,{"$f":"B63*D63","v":0}]
["Toilet Bowl Cleaner 25 litres",1,"Quarterly",0,{"$f":"D64*B64*4","v":0}]
["Heavy duty stripper 25 litres, stripping to be done quarterly",1,"6 monthly",0,{"$f":"D65*B65*2","v":0}]
["Multi purpose Cleaner- 25 litres",1,"Quarterly",0,{"$f":"D66*B66*4","v":0}]
["Cleaning Latex  gloves (box of 20)",1,"Monthly",0,{"$f":"D67*B67*12","v":0}]
["Household gloves (box of 20)",1,"Monthly",0,{"$f":"D68*B68*12","v":0}]
["Refuse bags 35 micron (20 per pack)",1,"Monthly",0,0]
["Glass and window cleaning material 10 litres",1,"Quarterly",0,{"$f":"D70*B70*4","v":0}]
["Dust Masks SABS approved ( box of 10)",1,"Monthly",0,0]
["Microfibre Dust Cloths (pack of 10)",1,"Quarterly",0,{"$f":"D72*B72*4","v":0}]
["Kitchen swabs (pack of 10)",1,"6 monthly",0,{"$f":"D73*B73*2","v":0}]
["Dish towels (pack of 10)",1,"6 monthly",0,{"$f":"D74*B74*2","v":0}]
["Spray bottles (500ml)",1,"Six monthly",0,{"$f":"D75*B75*2","v":0}]
["Window squdgee short",1,"Once off",0,{"$f":"D76*B76","v":0}]
["Cleaning Materials Yr 1 + profit",{"$nulls":3},{"$f":"SUM(E47:E76)","v":0}]
["Annual price Escalation in % for Y2",null,null,{"v":0,"d":"0%"}]
["  Cleaning Materials Yr 2 (with escalation + profit)",{"$nulls":3},{"$f":"E77*D78+E77","v":0}]
["Annual price Escalation in % for Y3",null,null,{"v":0,"d":"0%"}]
["Cleaning Materials Yr 3 (with escalation + profit)",{"$nulls":3},{"$f":"E79*D80+E79","v":0}]
["Annual price Escalation in % for Y4",null,null,{"v":0,"d":"0%"}]
["Cleaning Materials Yr 4 (with escalation + profit)",{"$nulls":3},{"$f":"E81*D82+E81","v":0}]
["Annual price Escalation in % for Y5",null,null,{"v":0,"d":"0%"}]
["Cleaning Materials Yr 5 (with escalation + profit)",{"$nulls":3},{"$f":"E83*D84+E83","v":0}]
["SUB-TOTAL COST OF CLEANING MATERIALS  (3.1.3-C)",{"$nulls":3},{"$f":"E77+E79+E81+E83+E85","v":0}]
[]
["Add Sub totals 3.1.3-A-3.1.3-C"]
["Table",{"$nulls":3},"Total"]
["LABOUR                                                                                             3.1.3-A",{"$nulls":3},{"$f":"K15","v":0}]
["HYGIENCE SERVICE AND CONSUMABLE                                         3.1.3-B",{"$nulls":3},{"$f":"E43","v":0}]
["CLEANING MATERIAL AND CONSUMABLE                                       3.1.3 -C",{"$nulls":3},{"$f":"E86","v":0}]
[]
["TOTAL 3.1.3",{"$nulls":3},{"$f":"SUM(E90:E93)","v":0}]
[]
[]
[]
["Signature",null,"Date"]
[]
[]
["\tCompletion and submission of another form of pricing other than the template issued, incomplete completion of the pricing schedule or amendments made to the template will result in the bid being disqualified."]

{"sheet":"Phuthaditjhaba 3.1.4","index":3,"n_rows":101,"n_cols":11,"rows_kept":101,"merged":[[0,0,0,6],[1,7,1,10],[2,0,2,10],[3,4,3,9],[5,0,5,1],[6,0,6,1],[6,2,6,10],[7,0,7,1],[8,0,8,1],[8,2,8,10],[9,0,9,1],[10,0,10,1],[10,2,10,10],[11,0,11,1],[12,0,12,1],[12,2,12,10],[13,0,13,1],[15,0,15,10],[16,0,16,10],[33,0,33,2],[34,0,34,2],[34,3,34,4],[35,0,35,2],[36,0,36,2],[36,3,36,4],[37,0,37,2],[38,0,38,2],[38,3,38,4],[39,0,39,2],[40,0,40,2],[40,3,40,4],[41,0,41,2],[44,0,44,5],[76,0,76,2],[77,0,77,2],[77,3,77,4],[78,0,78,2],[79,0,79,2],[79,3,79,4],[80,0,80,2],[81,0,81,2],[81,3,81,4],[82,0,82,2],[83,0,83,2],[83,3,83,4],[84,0,84,2],[85,0,85,3],[86,0,86,5],[87,0,87,5],[89,0,89,3],[90,0,90,3],[91,0,91,3],[92,0,92,3],[93,0,93,3],[95,0,96,0],[95,2,96,2]]}
["Incomplete pricing schedules (SBD3.1.1-SBD 3.1.5 may lead to disqualification. Only the attached pricing schedule SBD3.1.1- SBD 3.1.5 will be accepted for evaluation purposes."]
["PROVISION OF CLEANING, HYGEINE AND PEST CONTROL SERVICES FOR GPAA ",{"$nulls":4}," NAME OF BIDDER:"]
["CLEANING SERVICES  PRICE STRUCTURE: PHUTHADITJHABA OFFICE"]
["CLEANING PERSONNEL  PRICE STRUCTURE","QTY","RATE PER MONTH- CLEANER","Sub-Total","N/A",{"$nulls":5},"ANNUAL TOTAL"]
["LABOUR Cost + profit",2,0,{"$f":"C5*B5","v":0},null,0,{"$f":"F5*E5","v":0},null,0,{"$f":"I5*H5","v":0},{"$f":"D5*12","v":0}]
["Total Year 1",{"$nulls":9},{"$f":"K5","v":0}]
["annual price escalation in % for Y2",null,{"v":0,"d":"0%"}]
["Total Year 2",{"$nulls":9},{"$f":"K6*C7+K6","v":0}]
["annual price escalation in % for Y3",null,{"v":0,"d":"0%"}]
["Total Year 3",{"$nulls":9},{"$f":"K8*C9+K8","v":0}]
["annual price escalation in % for Y4",null,{"v":0,"d":"0%"}]
["Total Year 4",{"$nulls":9},{"$f":"K10*C11+K10","v":0}]
["annual price escalation in % for Y5",null,{"v":0,"d":"0%"}]
["Total Year 5",{"$nulls":9},{"$f":"K12*C13+K12","v":0}]
["SUB-TOTAL COST OF LABOUR  (3.1.4-A)",{"$nulls":9},{"$f":"K6+K8+K10+K12+K14","v":0}]
[]
["HYGIENE SERVICES & CONSUMABLES"]
["PRODUCT/SERVICE","QUANTITY","FREQUENCY","  COST  per quantity","ANNUAL COST"]
["Deep Cleaning  of ablution facilities  including urinals",5,"Monthly",0,{"$f":"B19*D19*12","v":0}]
["Automatic air freshners and refills",3,"Monthly rental and  Re-fill as required",0,{"$f":"B20*D20*12","v":0}]
["Paper towel dispensers",3,"Monthly rental",0,0]
["Paper towels (pack of 6)",4,"Monthly ",0,0]
["Contingency hand towels (pack of 6)",5,"When required",0,{"$f":"B23*D23","v":0}]
["Waste Bins and bags",3,"Monthly rental and Re-fill as required",null,0]
["Foam Soap dispenser and refills",3,"Monthly rental and Re-fill as required",0,0]
["Seat Sprays and refills",5,"Monthly rental and  Re-fill as required",0,0]
["Toilet Roll holders TR3",5,"Monthly rental",0,0]
["Toilet Rolls (bale of 48)",5,"Monthly supply",0,0]
["Contingency toilet paper (pack of 38)",3,"When required",0,{"$f":"B29*D29","v":0}]
["Urinal mats",3,"Monthly change",0,{"$f":"B30*D30*12","v":0}]
["She Bins provide and service",3," Fortnightly service",0,{"$f":"B31*D31*24","v":0}]
["Capert Cleaning (estimate 177m2)",177,"6 monthly  (twice a year)",0,{"$f":"B32*D32*2","v":0}]
["Upholstery cleaning (estimate 75 chairs)",75,"Annually",null,{"$f":"B33*D33","v":0}]
["Hygiene Services and consumables  Yr 1 (with+ profit)",{"$nulls":3},{"$f":"SUM(E19:E33)","v":0}]
["Annual price Escalation in % for Y2",null,null,{"v":0,"d":"0%"}]
["Hygiene Services and consumables  Yr 2 (with escalation + profit)",{"$nulls":3},{"$f":"E34*D35+E34","v":0}]
["Annual price Escalation in % for Y3",null,null,{"v":0,"d":"0%"}]
["Hygiene Services and consumables  Yr 3 (with escalation+ profit)",{"$nulls":3},{"$f":"E36*D37+E36","v":0}]
["Annual price Escalation in % for Y4",null,null,{"v":0,"d":"0%"}]
["Hygiene Services and consumables Yr 4 (with escalation + profit)",{"$nulls":3},{"$f":"E38*D39+E38","v":0}]
["Annual price Escalation in % for Y5",null,null,{"v":0,"d":"0%"}]
["Hygiene Services and consumables  Yr 5 (with escalation + profit)",{"$nulls":3},{"$f":"E40*D41+E40","v":0}]
["SUB-TOTAL COST OF HYGIENE AND CONSUMABLES (3.1.4-B)",{"$nulls":3},{"$f":"E34+E36+E38+E40+E42","v":0}]
[]
["CLEANING  MATERIAL + CONSUMABLES"]
["DESCRIPTION","QUANTITY","FREQUENCY","Unit cost/ per quantity","TOTAL"]
["Double buckets- offices (for the duration of the contract)",1,"Once off",0,{"$f":"D47*B47","v":0}]
["Mops - colour coded kitchens + office area - per quarter",1,"Quarterly",null,{"$f":"D48*B48*4","v":0}]
["Mops - colour coded (Blue) toilets - per quarter",1,"Quarterly",0,0]
["Household Brooms + Dustpans",1,"annually",0,{"$f":"D50*B50","v":0}]
["Low noise  vacuum cleaners",1,"Once off",0,{"$f":"D51*B51","v":0}]
["Short extension cord",1,"Once off",0,{"$f":"D52*B52","v":0}]
["Ladders  1 x short",1,"Once off",0,0]
["Wet floor caution signs",4,"Once off",0,0]
["Dishwashing liquid  25 litres ",1,"Quarterly",0,{"$f":"D55*B55*4","v":0}]
["Solu seal floor polish 5 litres  ",1,"Six monthly",0,{"$f":"D56*B56*2","v":0}]
["Pine Gel - 25 litres ",1,"Six monthly",0,{"$f":"D57*B57*2","v":0}]
["Bleach 25 litres",1,"Quarterly",0,{"$f":"D58*B58*4","v":0}]
["Surface sanitiser with 70-90%alcohol content 25l",1,"Quarterly",0,{"$f":"D59*B59*4","v":0}]
["Pledge Polish -wood 400ml-(Pack of 6)",1,"Quarterly",0,{"$f":"D60*B60*4","v":0}]
["Long  and short feather duster",2,"6 monthly",0,{"$f":"D61*B61*2","v":0}]
["Pledge Oil- 250ml (pack of 6)",1,"6 monthly",0,{"$f":"D62*B62*2","v":0}]
["Toiletbrushes",5,"annually",0,{"$f":"B63*D63","v":0}]
["Toilet Bowl Cleaner 25 litres",1,"Quarterly",0,{"$f":"D64*B64*4","v":0}]
["Heavy duty stripper 25 litres, stripping quarterly",1,"6 monthly",0,{"$f":"D65*B65*2","v":0}]
["Multi purpose Cleaner- 25 litres",1,"Quarterly",0,{"$f":"D66*B66*4","v":0}]
["Cleaning Latex  gloves (box of 20)",1,"Monthly",0,{"$f":"D67*B67*12","v":0}]
["Household gloves (box of 20)",1,"Quarterly",0,{"$f":"D68*B68*4","v":0}]
["Refuse bags 35 micron (20 per pack)",1,"Monthly",0,{"$f":"D69*B69*12","v":0}]
["Glass and window cleaning material 10 litres",1,"Quarterly",0,{"$f":"D70*B70*4","v":0}]
["Dust Masks SABS approved ( box of 10)",1,"Monthly",0,0]
["Microfibre Dust Cloths (pack of 10)",1,"Quarterly",0,{"$f":"D72*B72*4","v":0}]
["Kitchen swabs (pack of 10)",1,"6 monthly",0,{"$f":"D73*B73*2","v":0}]
["Dish towels Pack of 10)",1,"6 monthly",0,{"$f":"D74*B74*2","v":0}]
["Spray bottles (500ml)",1,"6 monthly",0,{"$f":"D75*B75*2","v":0}]
["Window squdgee short",1,"Once off",0,{"$f":"D76*B76","v":0}]
["Cleaning Materials Yr 1 + profit",{"$nulls":3},{"$f":"SUM(E47:E76)","v":0}]
["Annual price Escalation in % for Y2",null,null,{"v":0,"d":"0%"}]
["  Cleaning Materials Yr 2 (with escalation + profit)",{"$nulls":3},{"$f":"E77*D78+E77","v":0}]
["Annual price Escalation in % for Y3",null,null,{"v":0,"d":"0%"}]
["Cleaning Materials Yr 3 (with escalation + profit)",{"$nulls":3},{"$f":"E79*D80+E79","v":0}]
["Annual price Escalation in % for Y4",null,null,{"v":0,"d":"0%"}]
["Cleaning Materials Yr 4 (with escalation + profit)",{"$nulls":3},{"$f":"E81*D82+E81","v":0}]
["Annual price Escalation in % for Y5",null,null,{"v":0,"d":"0%"}]
["Cleaning Materials Yr 5 (with escalation + profit)",{"$nulls":3},{"$f":"E83*D84+E83","v":0}]
["SUB-TOTAL COST OF CLEANING MATERIALS  (3.1.4-C)",{"$nulls":3},{"$f":"E77+E79+E81+E83+E85","v":0}]
[]
["Add Sub totals 3.1.3-A-3.1.3-C"]
["Table",{"$nulls":3},"Total"]
["LABOUR                                                                                             3.1.4-A",{"$nulls":3},{"$f":"K15","v":0}]
["HYGIENCE SERVICE AND CONSUMABLE                                         3.1.4-B",{"$nulls":3},{"$f":"E43","v":0}]
["CLEANING MATERIAL AND CONSUMABLE                                       3.1.4 -C",{"$nulls":3},{"$f":"E86","v":0}]
[]
["TOTAL 3.1.3",{"$nulls":3},{"$f":"SUM(E90:E93)","v":0}]
[]
[]
[]
["Signature",null,"Date"]
[]
[]
["   Completion and submission of another form of pricing other than the template issued, incomplete completion of the pricing schedule or amendments made to the template will result in the bid being disqualified."]

{"sheet":"Kimberley3.1.5","index":4,"n_rows":101,"n_cols":11,"rows_kept":101,"merged":[[0,0,0,6],[1,7,1,10],[2,0,2,10],[3,4,3,9],[5,0,5,1],[6,0,6,1],[6,2,6,10],[7,0,7,1],[8,0,8,1],[8,2,8,10],[9,0,9,1],[10,0,10,1],[10,2,10,10],[11,0,11,1],[12,0,12,1],[12,2,12,10],[13,0,13,1],[15,0,15,10],[16,0,16,10],[33,0,33,2],[34,0,34,2],[34,3,34,4],[35,0,35,2],[36,0,36,2],[36,3,36,4],[37,0,37,2],[38,0,38,2],[38,3,38,4],[39,0,39,2],[40,0,40,2],[40,3,40,4],[41,0,41,2],[44,0,44,5],[76,0,76,2],[77,0,77,2],[77,3,77,4],[78,0,78,2],[79,0,79,2],[79,3,79,4],[80,0,80,2],[81,0,81,2],[81,3,81,4],[82,0,82,2],[83,0,83,2],[83,3,83,4],[84,0,84,2],[85,0,85,3],[86,0,86,5],[87,0,87,5],[89,0,89,3],[90,0,90,3],[91,0,91,3],[92,0,92,3],[93,0,93,3],[95,0,96,0],[95,2,96,2]]}
["Incomplete pricing schedules (SBD3.1.1-SBD 3.1.5) may lead to disqualification. Only the attached pricing schedule SBD3.1.1- SBD 3.1.5 Will be accepted for evaluation purposes."]
["PROVISION OF CLEANING, HYGEINE AND PEST CONTROL SERVICES FOR GPAA ",{"$nulls":4}," NAME OF BIDDER:"]
["CLEANING SERVICES  PRICE STRUCTURE: KIMBERLEY OFFICE"]
["CLEANING PERSONNEL  PRICE STRUCTURE","QTY","RATE PER MONTH- CLEANER","Sub-Total","N/A",{"$nulls":5},"ANNUAL TOTAL"]
["LABOUR Cost + profit",2,0,{"$f":"C5*B5","v":0},null,0,{"$f":"F5*E5","v":0},null,0,{"$f":"I5*H5","v":0},{"$f":"D5*12","v":0}]
["Total Year 1",{"$nulls":9},{"$f":"K5","v":0}]
["annual price escalation in % for Y2",null,{"v":0,"d":"0%"}]
["Total Year 2",{"$nulls":9},{"$f":"K6*C7+K6","v":0}]
["annual price escalation in % for Y3",null,{"v":0,"d":"0%"}]
["Total Year 3",{"$nulls":9},{"$f":"K8*C9+K8","v":0}]
["annual price escalation in % for Y4",null,{"v":0,"d":"0%"}]
["Total Year 4",{"$nulls":9},{"$f":"K10*C11+K10","v":0}]
["annual price escalation in % for Y5",null,{"v":0,"d":"0%"}]
["Total Year 5",{"$nulls":9},{"$f":"K12*C13+K12","v":0}]
["SUB-TOTAL COST OF LABOUR  (3.1.5-A)",{"$nulls":9},{"$f":"K6+K8+K10+K12+K14","v":0}]
[]
["HYGIENE SERVICES & CONSUMABLES"]
["PRODUCT/SERVICE","QUANTITY","FREQUENCY","  COST  per quantity","ANNUAL COST"]
["Deep Cleaning  of ablution facilities  including urinals",5,"Monthly",0,{"$f":"B19*D19*12","v":0}]
["Automatic air freshners and refills",3,"Monthly rental and  Re-fill as required",0,{"$f":"B20*D20*12","v":0}]
["Paper towel dispensers",3,"Monthly rental",0,0]
["Paper towels (pack of 6)",4,"Monthly ",0,0]
["Contingency hand towels (pack of 6)",5,"When required",null,{"$f":"B23*D23","v":0}]
["Waste Bins and bags",3,"Monthly rental and Re-fill as required",null,0]
["Foam Soap dispenser and refills",3,"Monthly rental and Re-fill as required",0,0]
["Seat Sprays and refills",5,"Monthly rental and  Re-fill as required",0,0]
["Toilet Roll holders TR3",5,"Monthly rental",0,0]
["Toilet Rolls (bale of 48)",5,"Monthly supply",0,0]
["Contingency toilet paper (pack of 38)",3,"When required",0,{"$f":"B29*D29","v":0}]
["Urinal mats",3,"Monthly change",0,{"$f":"B30*D30*12","v":0}]
["She Bins provide and service",3," Fortnightly service",0,{"$f":"B31*D31*24","v":0}]
["Capert Cleaning (estimate 177m2)",177,"6 monthly  (twice a year)",0,{"$f":"B32*D32*2","v":0}]
["Upholstery cleaning (estimate 75 chairs)",75,"Annually",null,{"$f":"B33*D33","v":0}]
["Hygiene Services and consumables  Yr 1 (with+ profit)",{"$nulls":3},{"$f":"SUM(E19:E33)","v":0}]
["Annual price Escalation in % for Y2",null,null,{"v":0,"d":"0%"}]
["Hygiene Services and consumables  Yr 2 (with escalation + profit)",{"$nulls":3},{"$f":"E34*D35+E34","v":0}]
["Annual price Escalation in % for Y3",null,null,{"v":0,"d":"0%"}]
["Hygiene Services and consumables  Yr 3 (with escalation+ profit)",{"$nulls":3},{"$f":"E36*D37+E36","v":0}]
["Annual price Escalation in % for Y4",null,null,{"v":0,"d":"0%"}]
["Hygiene Services and consumables Yr 4 (with escalation + profit)",{"$nulls":3},{"$f":"E38*D39+E38","v":0}]
["Annual price Escalation in % for Y5",null,null,{"v":0,"d":"0%"}]
["Hygiene Services and consumables  Yr 5 (with escalation + profit)",{"$nulls":3},{"$f":"E40*D41+E40","v":0}]
["SUB-TOTAL COST OF HYGIENE AND CONSUMABLES (3.1.5-B)",{"$nulls":3},{"$f":"E34+E36+E38+E40+E42","v":0}]
[]
["CLEANING  MATERIAL + CONSUMABLES"]
["DESCRIPTION","QUANTITY","FREQUENCY","Unit cost/ per quantity","TOTAL"]
["Double buckets- offices (for the duration of the contract)",1,"Once off",0,{"$f":"D47*B47","v":0}]
["Mops - colour coded Offices + kitchens - per quarter",1,"Quarterly",null,{"$f":"D48*B48*4","v":0}]
["Mops - colour coded (Blue) toilets - per quarter",1,"Quarterly",0,0]
["Household Brooms + Dustpans",1,"annually",0,{"$f":"D50*B50","v":0}]
["Low noise  vacuum cleaners",1,"Once off",0,{"$f":"D51*B51","v":0}]
["Short extension cord",1,"Once off",0,{"$f":"D52*B52","v":0}]
["Ladders  1 x short",1,"Once off",0,0]
["Wet floor caution signs",2,"Once off",null,0]
["Dishwashing liquid  25 litres ",1,"Quarterly",0,{"$f":"D55*B55*4","v":0}]
["Solu seal floor polish 5 litres  ",1,"Six monthly",0,{"$f":"D56*B56*2","v":0}]
["Pine Gel - 25 litres ",1,"Six monthly",0,{"$f":"D57*B57*2","v":0}]
["Bleach 25 litres",1,"Quarterly",0,{"$f":"D58*B58*4","v":0}]
["Surface sanitiser with 70-90%alcohol content 25l",1,"Quarterly",0,{"$f":"D59*B59*4","v":0}]
["Pledge Polish -wood 400ml-(Pack of 6)",1,"Quarterly",0,{"$f":"D60*B60*4","v":0}]
["Long  and short feather duster",1,"6 monthly",0,{"$f":"D61*B61*2","v":0}]
["Pledge Oil- 250ml (pack of 6)",1,"6 monthly",0,{"$f":"D62*B62*2","v":0}]
["Toilet brushes",5,"annually",0,{"$f":"B63*D63","v":0}]
["Toilet Bowl Cleaner 25 litres",1,"Quarterly",0,{"$f":"D64*B64*4","v":0}]
["Heavy duty stripper 25 litres, stripping quarterly",1,"6 monthly",0,{"$f":"D65*B65*2","v":0}]
["Multi purpose Cleaner- 25 litres",1,"Quarterly",0,{"$f":"D66*B66*4","v":0}]
["Cleaning Latex  gloves (box of 20)",1,"Monthly",0,{"$f":"D67*B67*12","v":0}]
["Household gloves (box of 20)",1,"Quarterly",0,{"$f":"D68*B68*4","v":0}]
["Refuse bags 35 micron (20 per pack)",1,"Monthly",null,{"$f":"D69*B69*12","v":0}]
["Glass and window cleaning material 10 litres",1,"Quarterly",0,{"$f":"D70*B70*4","v":0}]
["Dust Masks SABS approved ( box of 10)",1,"Monthly",0,0]
["Microfibre Dust Cloths (pack of 10)",1,"Quarterly",0,{"$f":"D72*B72*4","v":0}]
["Kitchen swabs (pack of 10)",1,"Quarterly",0,{"$f":"D73*B73*4","v":0}]
["Dish towels",1,"Quarterly",0,{"$f":"D74*B74*4","v":0}]
["Spray bottles (500ml)",1,"Six monthly",0,{"$f":"D75*B75*2","v":0}]
["Window squdgee short",1,"Once off",0,{"$f":"D76*B76","v":0}]
["Cleaning Materials Yr 1 + profit",{"$nulls":3},{"$f":"SUM(E47:E76)","v":0}]
["Annual price Escalation in % for Y2",null,null,{"v":0,"d":"0%"}]
["  Cleaning Materials Yr 2 (with escalation + profit)",{"$nulls":3},{"$f":"E77*D78+E77","v":0}]
["Annual price Escalation in % for Y3",null,null,{"v":0,"d":"0%"}]
["Cleaning Materials Yr 3 (with escalation + profit)",{"$nulls":3},{"$f":"E79*D80+E79","v":0}]
["Annual price Escalation in % for Y4",null,null,{"v":0,"d":"0%"}]
["Cleaning Materials Yr 4 (with escalation + profit)",{"$nulls":3},{"$f":"E81*D82+E81","v":0}]
["Annual price Escalation in % for Y5",null,null,{"v":0,"d":"0%"}]
["Cleaning Materials Yr 5 (with escalation + profit)",{"$nulls":3},{"$f":"E83*D84+E83","v":0}]
["SUB-TOTAL COST OF CLEANING MATERIALS  (3.1.5-C)",{"$nulls":3},{"$f":"E77+E79+E81+E83+E85","v":0}]
[]
["Add Sub totals 3.1.3-A-3.1.3-C"]
["Table",{"$nulls":3},"Total"]
["LABOUR                                                                                             3.1.5-A",{"$nulls":3},{"$f":"K15","v":0}]
["HYGIENCE SERVICE AND CONSUMABLE                                         3.1.5-B",{"$nulls":3},{"$f":"E43","v":0}]
["CLEANING MATERIAL AND CONSUMABLE                                       3.1.5 -C",{"$nulls":3},{"$f":"E86","v":0}]
[]
["TOTAL 3.1.5",{"$nulls":3},{"$f":"SUM(E90:E93)","v":0}]
[]
[]
[]
["Signature",null,"Date"]
[]
[]
["   Completion and submission of another form of pricing other than the template issued, incomplete completion of the pricing schedule or amendments made to the template will result in the bid being disqualified."]

{"sheet":"Grand Total","index":5,"n_rows":20,"n_cols":3,"rows_kept":20,"merged":[[1,5,1,9],[2,0,2,1],[13,0,16,1]]}
["PRICING PROPOSALS"]
["PROVISION OF CLEANING, HYGEINE AND PEST CONTROL SERVICES FOR GPAA ",null," NAME OF BIDDER:"]
["GRAND TOTAL"]
["    Table","Worksheet Sub- Total"]
["Table 3.1.1",{"$f":"'Rustenburg 3.1.1'!E91","v":{"v":0,"d":"0.00"}}]
["Table 3.1.2",{"$f":"'Mafikeng 3.1.2'!E93","v":{"v":0,"d":"0.00"}}]
["Table 3.1.3",{"$f":"'Bloemfontein 3.1.3'!E94","v":{"v":0,"d":"0.00"}}]
["Table 3.1.4",{"$f":"'Phuthaditjhaba 3.1.4'!E94","v":{"v":0,"d":"0.00"}}]
["Table 3.1.5",{"$f":"'Kimberley3.1.5'!E94","v":{"v":0,"d":"0.00"}}]
["SUB-TOTAL",{"$f":"SUM(B5:B9)","v":{"v":0,"d":"0.00"}}]
["VAT",{"$f":"B10*15%","v":0}]
["GRAND TOTAL (CONTRACT VALUE)",{"$f":"SUM(B10:B11)","v":0}]
[]
["Note: VAT is only applicable to VAT vendors only, if you are not VAT vendor, the sub-total will be used as Grand total ( Contract Value)"]
[]
[]
[]
[]
[]
["Completion and submission of another form of pricing other than the template issued, incomplete completion of the pricing schedule or amendments made to the template will result in the bid being disqualified."]